[Event "Late-Titled-Tuesday-Blitz-November-28-2023"]
[Site "Chess.com"]
[Date "2023.11.28"]
[Round "10"]
[White "ChristopherYoo"]
[Black "German_Bazeev"]
[Result "0-1"]
[WhiteElo "3002"]
[BlackElo "2840"]
[TimeControl "180+1"]
[EndTime "15:53:19 PST"]
[Termination "German_Bazeev won by resignation"]

1. d4 {[%clk 0:03:00.9]} 1... Nf6 {[%clk 0:02:59.2]} 2. Nf3 {[%clk 0:03:00.9]}
2... e6 {[%clk 0:02:59.3]} 3. c4 {[%clk 0:03:00.8]} 3... b6 {[%clk 0:02:58.9]}
4. g3 {[%clk 0:03:00.2]} 4... Bb7 {[%clk 0:02:59.4]} 5. Bg2 {[%clk 0:03:00.2]}
5... Bb4+ {[%clk 0:03:00.1]} 6. Bd2 {[%clk 0:02:59]} 6... c5 {[%clk 0:03:00.7]}
7. Bxb4 {[%clk 0:02:53.2]} 7... cxb4 {[%clk 0:03:01.6]} 8. O-O {[%clk
0:02:53.5]} 8... a5 {[%clk 0:03:02]} 9. a3 {[%clk 0:02:53.2]} 9... Na6 {[%clk
0:03:02.1]} 10. Re1 {[%clk 0:02:28]} 10... O-O {[%clk 0:03:00.4]} 11. Nbd2
{[%clk 0:02:26.5]} 11... d6 {[%clk 0:03:00.9]} 12. e4 {[%clk 0:02:25.2]} 12...
Qc7 {[%clk 0:03:01.5]} 13. Qe2 {[%clk 0:02:15.8]} 13... e5 {[%clk 0:03:01.5]}
14. Qe3 {[%clk 0:01:53.9]} 14... Rfe8 {[%clk 0:02:54.4]} 15. Rac1 {[%clk
0:01:51.8]} 15... Rad8 {[%clk 0:02:49.9]} 16. Red1 {[%clk 0:01:47.2]} 16... Qb8
{[%clk 0:02:38.1]} 17. dxe5 {[%clk 0:01:44.3]} 17... dxe5 {[%clk 0:02:34.6]} 18.
Qxb6 {[%clk 0:01:44.7]} 18... bxa3 {[%clk 0:02:18.7]} 19. bxa3 {[%clk
0:01:43.4]} 19... Nd7 {[%clk 0:02:19.4]} 20. Qxa5 {[%clk 0:01:42.9]} 20... Ndc5
{[%clk 0:02:14.3]} 21. Rb1 {[%clk 0:01:34.9]} 21... Qa8 {[%clk 0:02:12.6]} 22.
Ne1 {[%clk 0:01:27.8]} 22... Rd6 {[%clk 0:01:50.7]} 23. Nc2 {[%clk 0:01:27.3]}
23... Qd8 {[%clk 0:01:44.3]} 24. Qxd8 {[%clk 0:00:44.1]} 24... Rexd8 {[%clk
0:01:45.2]} 25. Nb4 {[%clk 0:00:44.2]} 25... Nxb4 {[%clk 0:01:31]} 26. axb4
{[%clk 0:00:43.5]} 26... Ne6 {[%clk 0:01:23.1]} 27. Ra1 {[%clk 0:00:26.7]} 27...
Rxd2 {[%clk 0:01:16.8]} 28. Rxd2 {[%clk 0:00:26.1]} 28... Rxd2 {[%clk
0:01:17.7]} 29. h4 {[%clk 0:00:25.5]} 29... g5 {[%clk 0:01:12.1]} 30. Ra7 {[%clk
0:00:24.4]} 30... Rd1+ {[%clk 0:00:57.4]} 31. Kh2 {[%clk 0:00:23.5]} 31... Rd7
{[%clk 0:00:49.1]} 32. Bh3 {[%clk 0:00:18.6]} 32... gxh4 {[%clk 0:00:45.9]} 33.
gxh4 {[%clk 0:00:19.5]} 33... Bc6 {[%clk 0:00:38.9]} 34. Ra6 {[%clk 0:00:14]}
34... Bxe4 {[%clk 0:00:36.2]} 35. b5 {[%clk 0:00:05.9]} 35... Rd2 {[%clk
0:00:32]} 36. Bxe6 {[%clk 0:00:03.2]} 36... fxe6 {[%clk 0:00:32.7]} 37. Rxe6
{[%clk 0:00:03.4]} 37... Rxf2+ {[%clk 0:00:31.6]} 38. Kg1 {[%clk 0:00:02.5]}
38... Rc2 {[%clk 0:00:28.6]} 39. Rxe5 {[%clk 0:00:02]} 39... Rxc4 {[%clk
0:00:28.9]} 40. Kf2 {[%clk 0:00:02.5]} 40... Rb4 {[%clk 0:00:28.2]} 41. Kg3
{[%clk 0:00:02.5]} 41... Kf7 {[%clk 0:00:26.6]} 42. Rc5 {[%clk 0:00:02.3]} 42...
Kf6 {[%clk 0:00:25.3]} 43. h5 {[%clk 0:00:02]} 43... Bf5 {[%clk 0:00:24.9]} 44.
Kf3 {[%clk 0:00:01.3]} 44... h6 {[%clk 0:00:24.1]} 45. Ke3 {[%clk 0:00:01.7]}
45... Bd7 {[%clk 0:00:21.8]} 46. Rc7 {[%clk 0:00:01.5]} 46... Bxb5 {[%clk
0:00:20.5]} 47. Rb7 {[%clk 0:00:02]} 47... Rb3+ {[%clk 0:00:20.8]} 48. Kd4
{[%clk 0:00:02.2]} 48... Ba4 {[%clk 0:00:20.8]} 49. Ra7 {[%clk 0:00:02.4]} 49...
Be8 {[%clk 0:00:18.6]} 50. Ra8 {[%clk 0:00:02.7]} 50... Bxh5 {[%clk 0:00:17.8]}
51. Rh8 {[%clk 0:00:02.4]} 51... Kg5 {[%clk 0:00:16.2]} 52. Ke4 {[%clk 0:00:02]}
52... Bg6+ {[%clk 0:00:16.4]} 53. Ke5 {[%clk 0:00:02]} 53... Re3+ {[%clk
0:00:16.9]} 54. Kd4 {[%clk 0:00:02.3]} 54... Re1 {[%clk 0:00:17.3]} 55. Ra8
{[%clk 0:00:02]} 55... h5 {[%clk 0:00:17.3]} 56. Ra5+ {[%clk 0:00:02.6]} 56...
Bf5 {[%clk 0:00:17.2]} 57. Ra8 {[%clk 0:00:02.7]} 57... h4 {[%clk 0:00:17.4]}
58. Rg8+ {[%clk 0:00:02.8]} 58... Bg6 {[%clk 0:00:17.7]} 59. Rh8 {[%clk
0:00:02.4]} 59... Re7 {[%clk 0:00:16.6]} 60. Kd5 {[%clk 0:00:02]} 60... Kg4
{[%clk 0:00:16]} 61. Rg8 {[%clk 0:00:02.1]} 61... Kg5 {[%clk 0:00:16.1]} 62. Rh8
{[%clk 0:00:02.6]} 62... Re1 {[%clk 0:00:16.2]} 63. Kd4 {[%clk 0:00:02.8]} 63...
Re4+ {[%clk 0:00:15.5]} 64. Kd5 {[%clk 0:00:02.9]} 64... Rg4 {[%clk 0:00:16.1]}
65. Ke5 {[%clk 0:00:02.8]} 65... Rg3 {[%clk 0:00:15.1]} 66. Kd4 {[%clk 0:00:03]}
66... h3 {[%clk 0:00:15.5]} 67. Ke5 {[%clk 0:00:02.5]} 67... Ra3 {[%clk
0:00:14.3]} 68. Kd4 {[%clk 0:00:02.7]} 68... Bf5 {[%clk 0:00:14.4]} 69. Ke5
{[%clk 0:00:02.7]} 69... Bg4 {[%clk 0:00:15]} 70. Rg8+ {[%clk 0:00:02.3]} 70...
Kh4 {[%clk 0:00:15.3]} 71. Kf4 {[%clk 0:00:02.9]} 71... Ra4+ {[%clk 0:00:15]}
72. Ke3 {[%clk 0:00:03.2]} 72... Kg3 {[%clk 0:00:15.5]} 73. Rh8 {[%clk
0:00:03.6]} 73... h2 {[%clk 0:00:16]} 74. Rh7 {[%clk 0:00:03.7]} 74... Ra3+
{[%clk 0:00:16.4]} 75. Kd2 {[%clk 0:00:03]} 75... Ra1 {[%clk 0:00:16.9]} 76. Ke3
{[%clk 0:00:03]} 76... h1=Q {[%clk 0:00:17.3]} 0-1

[Event "Late-Titled-Tuesday-Blitz-November-28-2023"]
[Site "Chess.com"]
[Date "2023.11.28"]
[Round "10"]
[White "Jaka_Brilej"]
[Black "RodokininEV"]
[Result "0-1"]
[WhiteElo "2465"]
[BlackElo "2585"]
[TimeControl "180+1"]
[EndTime "15:53:32 PST"]
[Termination "RodokininEV won by checkmate"]

1. d4 {[%clk 0:03:00.9]} 1... Nf6 {[%clk 0:02:59.7]} 2. Nc3 {[%clk 0:03:00.5]}
2... g6 {[%clk 0:03:00.3]} 3. e4 {[%clk 0:02:59.5]} 3... d6 {[%clk 0:03:00.7]}
4. Nf3 {[%clk 0:03:00]} 4... Bg7 {[%clk 0:03:00.5]} 5. Be2 {[%clk 0:03:00.3]}
5... O-O {[%clk 0:03:00.2]} 6. O-O {[%clk 0:03:01.1]} 6... c6 {[%clk 0:02:59.7]}
7. a4 {[%clk 0:03:00]} 7... a5 {[%clk 0:02:59.3]} 8. Re1 {[%clk 0:02:58.5]} 8...
Nbd7 {[%clk 0:02:58.8]} 9. h3 {[%clk 0:02:57.3]} 9... e5 {[%clk 0:02:59.1]} 10.
Be3 {[%clk 0:02:52.3]} 10... Re8 {[%clk 0:02:56.2]} 11. dxe5 {[%clk 0:02:37.3]}
11... dxe5 {[%clk 0:02:57.1]} 12. Bc4 {[%clk 0:02:31.9]} 12... Qe7 {[%clk
0:02:53.3]} 13. Qd2 {[%clk 0:02:26.5]} 13... Nh5 {[%clk 0:02:48]} 14. Rad1
{[%clk 0:02:23.3]} 14... Nf4 {[%clk 0:02:44.5]} 15. Qd6 {[%clk 0:02:20.4]} 15...
Qxd6 {[%clk 0:02:40.5]} 16. Rxd6 {[%clk 0:02:21.3]} 16... h6 {[%clk 0:02:34]}
17. Red1 {[%clk 0:02:19]} 17... Nf8 {[%clk 0:02:31.5]} 18. b3 {[%clk 0:01:58.5]}
18... Be6 {[%clk 0:02:28.9]} 19. Bxe6 {[%clk 0:01:53.3]} 19... N4xe6 {[%clk
0:02:29.8]} 20. Bb6 {[%clk 0:01:49.7]} 20... Rec8 {[%clk 0:02:22.8]} 21. Be3
{[%clk 0:01:40.9]} 21... Re8 {[%clk 0:02:19.8]} 22. Kf1 {[%clk 0:01:40.8]} 22...
f5 {[%clk 0:02:14]} 23. exf5 {[%clk 0:01:19.5]} 23... gxf5 {[%clk 0:02:14.9]}
24. Nh4 {[%clk 0:01:20]} 24... f4 {[%clk 0:02:08.8]} 25. Bc1 {[%clk 0:01:20.5]}
25... Nd4 {[%clk 0:02:06.6]} 26. Rd2 {[%clk 0:01:05.7]} 26... Rad8 {[%clk
0:02:06.2]} 27. Rxd8 {[%clk 0:01:05.3]} 27... Rxd8 {[%clk 0:02:07.1]} 28. Ne4
{[%clk 0:01:05.7]} 28... Nfe6 {[%clk 0:02:02.6]} 29. Bb2 {[%clk 0:01:04.5]}
29... Kf7 {[%clk 0:01:57.9]} 30. Ke1 {[%clk 0:00:49.6]} 30... b6 {[%clk
0:01:54.2]} 31. Bxd4 {[%clk 0:00:47.8]} 31... Rxd4 {[%clk 0:01:54.2]} 32. Nf5
{[%clk 0:00:44.7]} 32... Rxe4+ {[%clk 0:01:52.3]} 33. Kd1 {[%clk 0:00:39.4]}
33... Rd4 {[%clk 0:01:41.3]} 34. Nxd4 {[%clk 0:00:38.7]} 34... exd4 {[%clk
0:01:40.4]} 35. Re2 {[%clk 0:00:35.1]} 35... Kf6 {[%clk 0:01:39.4]} 36. f3
{[%clk 0:00:35.3]} 36... Kf5 {[%clk 0:01:38.6]} 37. Re4 {[%clk 0:00:34]} 37...
Be5 {[%clk 0:01:37.9]} 38. Kd2 {[%clk 0:00:29.9]} 38... Nc7 {[%clk 0:01:34.7]}
39. Re1 {[%clk 0:00:26.2]} 39... Nd5 {[%clk 0:01:33.8]} 40. Rb1 {[%clk
0:00:26.1]} 40... c5 {[%clk 0:01:33.1]} 41. Re1 {[%clk 0:00:25.5]} 41... Ne3
{[%clk 0:01:33]} 42. Re2 {[%clk 0:00:24.9]} 42... Kg5 {[%clk 0:01:30.8]} 43. Kd3
{[%clk 0:00:24.6]} 43... Kf5 {[%clk 0:01:31.1]} 44. Rd2 {[%clk 0:00:21.1]} 44...
h5 {[%clk 0:01:29.8]} 45. Re2 {[%clk 0:00:21.2]} 45... h4 {[%clk 0:01:29.4]} 46.
Rd2 {[%clk 0:00:21.7]} 46... Ke6 {[%clk 0:01:29.7]} 47. Ke4 {[%clk 0:00:21.5]}
47... Kd6 {[%clk 0:01:27.7]} 48. Re2 {[%clk 0:00:20.4]} 48... Ke6 {[%clk
0:01:26.4]} 49. Rd2 {[%clk 0:00:20.7]} 49... Nd5 {[%clk 0:01:25.8]} 50. Rf2
{[%clk 0:00:19.6]} 50... Nf6+ {[%clk 0:01:24.7]} 51. Kd3 {[%clk 0:00:19.5]}
51... Kd5 {[%clk 0:01:25.3]} 52. Rf1 {[%clk 0:00:19.9]} 52... Ne8 {[%clk
0:01:23.5]} 53. Re1 {[%clk 0:00:20.3]} 53... Nd6 {[%clk 0:01:23.9]} 54. Re2
{[%clk 0:00:20.8]} 54... Nf5 {[%clk 0:01:24]} 55. Re1 {[%clk 0:00:20.6]} 55...
Ne3 {[%clk 0:01:24.3]} 56. Re2 {[%clk 0:00:21.2]} 56... c4+ {[%clk 0:01:22.4]}
57. bxc4+ {[%clk 0:00:21.3]} 57... Nxc4 {[%clk 0:01:23.3]} 58. Re1 {[%clk
0:00:21.9]} 58... Ne3 {[%clk 0:01:20.3]} 59. Rb1 {[%clk 0:00:22]} 59... Kc6
{[%clk 0:01:15.3]} 60. Rb5 {[%clk 0:00:21.7]} 60... Bd6 {[%clk 0:01:13.2]} 61.
Rg5 {[%clk 0:00:19.9]} 61... Bc5 {[%clk 0:01:09.5]} 62. Rg6+ {[%clk 0:00:19.5]}
62... Kd5 {[%clk 0:01:07.2]} 63. Rg5+ {[%clk 0:00:20]} 63... Ke6 {[%clk
0:01:07.4]} 64. Rg6+ {[%clk 0:00:17.7]} 64... Kf5 {[%clk 0:01:07.7]} 65. Rg8
{[%clk 0:00:18.5]} 65... Nd5 {[%clk 0:01:05.2]} 66. Rh8 {[%clk 0:00:16.7]} 66...
Nc3 {[%clk 0:01:04.5]} 67. Rxh4 {[%clk 0:00:15.3]} 67... Nxa4 {[%clk 0:01:04.7]}
68. Rh5+ {[%clk 0:00:15.7]} 68... Kf6 {[%clk 0:01:03.7]} 69. Rh8 {[%clk
0:00:14.7]} 69... Nb2+ {[%clk 0:01:03.4]} 70. Kd2 {[%clk 0:00:14.5]} 70... a4
{[%clk 0:01:03.6]} 71. h4 {[%clk 0:00:14.2]} 71... a3 {[%clk 0:01:03.8]} 72. Ra8
{[%clk 0:00:14.4]} 72... b5 {[%clk 0:01:00.7]} 73. Ra6+ {[%clk 0:00:12.9]} 73...
Ke5 {[%clk 0:00:59.8]} 74. h5 {[%clk 0:00:13.1]} 74... Na4 {[%clk 0:00:58.2]}
75. Kc1 {[%clk 0:00:08.4]} 75... Bb4 {[%clk 0:00:53.5]} 76. Kb1 {[%clk
0:00:08.4]} 76... Bc3 {[%clk 0:00:46.1]} 77. h6 {[%clk 0:00:09]} 77... Kd5
{[%clk 0:00:45.1]} 78. h7 {[%clk 0:00:09.5]} 78... d3 {[%clk 0:00:45.1]} 79.
cxd3 {[%clk 0:00:10.3]} 79... Kc5 {[%clk 0:00:43.6]} 80. Ra8 {[%clk 0:00:10.1]}
80... Kb4 {[%clk 0:00:43.6]} 81. h8=Q {[%clk 0:00:10.2]} 81... Bxh8 {[%clk
0:00:43.2]} 82. Rxh8 {[%clk 0:00:11.1]} 82... Kb3 {[%clk 0:00:42.7]} 83. Ka1
{[%clk 0:00:09]} 83... b4 {[%clk 0:00:42.6]} 84. d4 {[%clk 0:00:09.5]} 84... Nb6
{[%clk 0:00:38]} 85. Rb8 {[%clk 0:00:06.9]} 85... Nd5 {[%clk 0:00:38]} 86. Rb5
{[%clk 0:00:07.5]} 86... Ne3 {[%clk 0:00:36]} 87. d5 {[%clk 0:00:07.1]} 87...
Nc2+ {[%clk 0:00:35.1]} 88. Kb1 {[%clk 0:00:06.7]} 88... a2+ {[%clk 0:00:35.7]}
89. Kc1 {[%clk 0:00:07.6]} 89... a1=Q+ {[%clk 0:00:36.3]} 90. Kd2 {[%clk
0:00:08]} 90... Qc3+ {[%clk 0:00:36.5]} 91. Kd1 {[%clk 0:00:08.4]} 91... Qd3+
{[%clk 0:00:36.4]} 92. Kc1 {[%clk 0:00:07.8]} 92... Qxb5 {[%clk 0:00:37.3]} 93.
d6 {[%clk 0:00:07.9]} 93... Qf1+ {[%clk 0:00:37.3]} 94. Kd2 {[%clk 0:00:07.8]}
94... Qxg2+ {[%clk 0:00:37.6]} 95. Kd3 {[%clk 0:00:08.4]} 95... Qxf3+ {[%clk
0:00:38]} 96. Kd2 {[%clk 0:00:08.9]} 96... Qe3+ {[%clk 0:00:38.1]} 97. Kd1
{[%clk 0:00:09.3]} 97... Qe1# {[%clk 0:00:38.6]} 0-1

[Event "Late-Titled-Tuesday-Blitz-November-28-2023"]
[Site "Chess.com"]
[Date "2023.11.28"]
[Round "10"]
[White "cthulhuuu"]
[Black "Koksal06"]
[Result "1-0"]
[WhiteElo "2512"]
[BlackElo "2615"]
[TimeControl "180+1"]
[EndTime "15:53:34 PST"]
[Termination "cthulhuuu won by checkmate"]

1. e4 {[%clk 0:03:00]} 1... e5 {[%clk 0:03:00.5]} 2. Nf3 {[%clk 0:02:58.6]} 2...
Nc6 {[%clk 0:03:01.2]} 3. Bb5 {[%clk 0:02:58.8]} 3... Nge7 {[%clk 0:03:01.8]} 4.
c3 {[%clk 0:02:58.3]} 4... d6 {[%clk 0:03:00.5]} 5. d4 {[%clk 0:02:58.2]} 5...
Bd7 {[%clk 0:03:00.9]} 6. O-O {[%clk 0:02:56.6]} 6... Ng6 {[%clk 0:02:58.8]} 7.
Nbd2 {[%clk 0:02:44.9]} 7... Be7 {[%clk 0:02:58.3]} 8. Nc4 {[%clk 0:02:44.7]}
8... O-O {[%clk 0:02:57.9]} 9. Re1 {[%clk 0:02:38.5]} 9... Bf6 {[%clk
0:02:30.2]} 10. d5 {[%clk 0:02:29]} 10... Nce7 {[%clk 0:02:23]} 11. Bxd7 {[%clk
0:02:28.4]} 11... Qxd7 {[%clk 0:02:23.9]} 12. g3 {[%clk 0:02:28.3]} 12... Nc8
{[%clk 0:01:48.9]} 13. Kg2 {[%clk 0:02:25.2]} 13... Bd8 {[%clk 0:01:44.7]} 14.
Ne3 {[%clk 0:02:19.3]} 14... Nce7 {[%clk 0:01:44.9]} 15. h4 {[%clk 0:02:00.8]}
15... h6 {[%clk 0:01:41.8]} 16. h5 {[%clk 0:01:58.2]} 16... Nh8 {[%clk
0:01:41.9]} 17. Nh4 {[%clk 0:01:58.5]} 17... Nc8 {[%clk 0:01:38.4]} 18. Nef5
{[%clk 0:01:58.2]} 18... Bxh4 {[%clk 0:01:37.9]} 19. gxh4 {[%clk 0:01:54.4]}
19... Ne7 {[%clk 0:01:37.6]} 20. Qg4 {[%clk 0:01:21]} 20... Nxf5 {[%clk
0:01:35.4]} 21. exf5 {[%clk 0:01:21.9]} 21... Kh7 {[%clk 0:01:24.8]} 22. Kh2
{[%clk 0:01:18.2]} 22... Rg8 {[%clk 0:01:16.2]} 23. Rg1 {[%clk 0:01:17.9]} 23...
Rad8 {[%clk 0:01:05.2]} 24. Qe4 {[%clk 0:01:04.3]} 24... f6 {[%clk 0:00:54.8]}
25. Be3 {[%clk 0:01:04.2]} 25... c6 {[%clk 0:00:54.4]} 26. c4 {[%clk 0:01:04.2]}
26... cxd5 {[%clk 0:00:53.4]} 27. cxd5 {[%clk 0:01:05.1]} 27... a6 {[%clk
0:00:50.9]} 28. Rg4 {[%clk 0:01:00.1]} 28... Rc8 {[%clk 0:00:47.8]} 29. Rag1
{[%clk 0:00:59.4]} 29... Qb5 {[%clk 0:00:43.8]} 30. Qg2 {[%clk 0:00:48]} 30...
Qd7 {[%clk 0:00:29.8]} 31. Rg6 {[%clk 0:00:33.7]} 31... Qf7 {[%clk 0:00:16.1]}
32. Qg4 {[%clk 0:00:23.2]} 32... Rcf8 {[%clk 0:00:15.5]} 33. b4 {[%clk 0:00:21]}
33... Rc8 {[%clk 0:00:15]} 34. a4 {[%clk 0:00:21]} 34... b5 {[%clk 0:00:15.4]}
35. axb5 {[%clk 0:00:19.6]} 35... axb5 {[%clk 0:00:16.3]} 36. Qe2 {[%clk
0:00:19.7]} 36... Rc4 {[%clk 0:00:14.1]} 37. Kh3 {[%clk 0:00:09.1]} 37... Qd7
{[%clk 0:00:11.4]} 38. Qf3 {[%clk 0:00:09.1]} 38... e4 {[%clk 0:00:11.3]} 39.
Qg4 {[%clk 0:00:09.4]} 39... Rcc8 {[%clk 0:00:10.3]} 40. Qf4 {[%clk 0:00:03.1]}
40... Nxg6 {[%clk 0:00:09.9]} 41. Rxg6 {[%clk 0:00:03.4]} 41... Rgf8 {[%clk
0:00:07]} 42. Qg4 {[%clk 0:00:02.9]} 42... Qf7 {[%clk 0:00:06.6]} 43. Qf4 {[%clk
0:00:02.4]} 43... Rc7 {[%clk 0:00:06.4]} 44. Qxd6 {[%clk 0:00:02.7]} 44... Re8
{[%clk 0:00:05.8]} 45. Qg3 {[%clk 0:00:03.1]} 45... Rce7 {[%clk 0:00:06.1]} 46.
d6 {[%clk 0:00:03.5]} 46... Rd7 {[%clk 0:00:06.4]} 47. Bf4 {[%clk 0:00:03.5]}
47... Red8 {[%clk 0:00:06.7]} 48. Qg4 {[%clk 0:00:03.8]} 48... Re8 {[%clk
0:00:05.8]} 49. Qg3 {[%clk 0:00:04]} 49... Red8 {[%clk 0:00:06.3]} 50. Qe3
{[%clk 0:00:04.5]} 50... Rc8 {[%clk 0:00:06.7]} 51. Bxh6 {[%clk 0:00:05]} 51...
Rg8 {[%clk 0:00:04.7]} 52. Bf4 {[%clk 0:00:04.9]} 52... Qd5 {[%clk 0:00:05.5]}
53. h6 {[%clk 0:00:04.4]} 53... Qxf5+ {[%clk 0:00:06.1]} 54. Rg4 {[%clk
0:00:04.1]} 54... g6 {[%clk 0:00:06.1]} 55. Bg3 {[%clk 0:00:03.1]} 55... g5
{[%clk 0:00:06.3]} 56. Qxe4 {[%clk 0:00:03.2]} 56... Qxe4 {[%clk 0:00:06.5]} 57.
Rxe4 {[%clk 0:00:04.1]} 57... Kxh6 {[%clk 0:00:07.2]} 58. Re7 {[%clk 0:00:03.9]}
58... Kg6 {[%clk 0:00:07.5]} 59. Rxd7 {[%clk 0:00:04.6]} 59... Kf5 {[%clk
0:00:08.2]} 60. Rc7 {[%clk 0:00:04.2]} 60... g4+ {[%clk 0:00:08.9]} 61. Kg2
{[%clk 0:00:04.4]} 61... Ke6 {[%clk 0:00:09.6]} 62. Rc5 {[%clk 0:00:04.7]} 62...
Rd8 {[%clk 0:00:10.5]} 63. Rxb5 {[%clk 0:00:05.1]} 63... Rd7 {[%clk 0:00:11.1]}
64. Rh5 {[%clk 0:00:05]} 64... f5 {[%clk 0:00:11.2]} 65. Rh6+ {[%clk 0:00:05]}
65... Kd5 {[%clk 0:00:11.7]} 66. Rf6 {[%clk 0:00:05]} 66... Ke4 {[%clk
0:00:12.1]} 67. Re6+ {[%clk 0:00:05.6]} 67... Kd4 {[%clk 0:00:11.7]} 68. h5
{[%clk 0:00:05.5]} 68... Rf7 {[%clk 0:00:12]} 69. Re7 {[%clk 0:00:05.2]} 69...
Rf8 {[%clk 0:00:11.7]} 70. d7 {[%clk 0:00:05.7]} 70... f4 {[%clk 0:00:12.6]} 71.
Re8 {[%clk 0:00:05.7]} 71... f3+ {[%clk 0:00:12.7]} 72. Kh2 {[%clk 0:00:06.1]}
72... Rf5 {[%clk 0:00:12.9]} 73. d8=Q+ {[%clk 0:00:06.4]} 73... Kc3 {[%clk
0:00:12.8]} 74. Re3+ {[%clk 0:00:06.3]} 74... Kb2 {[%clk 0:00:12.4]} 75. Qd2+
{[%clk 0:00:06.3]} 75... Kb1 {[%clk 0:00:12.8]} 76. Re1# {[%clk 0:00:07.2]} 1-0